bitfinex/quotes_BTCUSD_20230905
["timestamp","ask_amount","ask_price","bid_price","bid_amount"]
[1693933810357,0.497267,25744.0,25743.0,3.6645401]
[1693933810687,0.497267,25744.0,25743.0,3.6642401]
[1693933810869,0.497267,25744.0,25743.0,3.6644201]
[1693933811002,0.497267,25744.0,25743.0,3.6646601]
[1693933811196,0.497267,25744.0,25743.0,3.6646001]
[1693933811410,0.33798616,25744.0,25743.0,4.64695821]
[1693933811629,0.39599323,25752.0,25744.0,0.15885287]
[1693933811844,0.09279729,25752.0,25751.0,0.1025]
[1693933812058,0.09279729,25752.0,25751.0,2.58716211]
[1693933812269,0.46988934,25753.0,25751.0,2.58716211]
[1693933812481,0.46988934,25753.0,25752.0,0.1025]
[1693933812482,0.3306934,25753.0,25752.0,0.1025]
[1693933812716,0.3306934,25753.0,25752.0,1.6564331]
[1693933814157,0.3306934,25753.0,25752.0,1.6584331]
[1693933814583,0.3306934,25753.0,25752.0,1.6594331]
[1693933814924,0.3306934,25753.0,25752.0,1.65557115]
[1693933815059,0.15279729,25753.0,25752.0,1.65557115]
[1693933815269,0.06,25753.0,25752.0,1.65557115]
[1693933816281,0.06,25753.0,25752.0,2.43220915]
[1693933819606,0.09279729,25754.0,25752.0,2.43220915]
[1693933819810,0.45509323,25755.0,25753.0,2.432324]
[1693933820035,0.31589729,25755.0,25754.0,0.1025]
[1693933820234,1.31439053,25756.0,25755.0,2.329644]
[1693933820235,1.14239729,25756.0,25755.0,2.329644]
[1693933820410,1.0496,25756.0,25755.0,2.432144]
[1693933820611,1.0496,25756.0,25755.0,1.655596]
[1693933820836,1.08186987,25756.0,25755.0,1.65624848]
[1693933821812,1.08186987,25756.0,25755.0,1.65238698]
[1693933822607,0.09226987,25756.0,25755.0,1.65238698]
[1693933822831,0.09226987,25756.0,25755.0,1.65438698]
[1693933824378,0.05226987,25756.0,25755.0,1.65438698]
[1693933824607,0.09226987,25756.0,25755.0,1.65438698]
[1693933825217,0.03226987,25756.0,25755.0,3.13093498]
[1693933825611,0.06,25758.0,25755.0,3.13093498]
[1693933825821,0.06,25758.0,25757.0,0.1025]
[1693933826036,0.06,25758.0,25757.0,2.431961]
[1693933826684,0.06,25758.0,25757.0,1.655474]
[1693933827088,0.06,25758.0,25757.0,1.656474]
[1693933827528,0.06,25758.0,25757.0,1.657474]
[1693933828636,0.06,25758.0,25757.0,1.6581214]
[1693933828866,0.23719801,25758.0,25757.0,1.6581214]
[1693933829421,0.2122,25760.0,25757.0,2.4346084]
[1693933829638,0.16629134,25759.0,25758.0,0.1025]
[1693933829862,0.16629134,25759.0,25758.0,0.878955]
[1693933831342,0.16629134,25759.0,25758.0,0.879955]
[1693933832635,0.94271834,25759.0,25758.0,0.002]
[1693933833073,0.94271834,25759.0,25757.0,0.776487]
[1693933833481,0.18306462,25758.0,25756.0,0.87713195]
[1693933833687,0.18306462,25758.0,25756.0,1.65363395]
[1693933835076,0.18306462,25758.0,25756.0,1.66363395]
[1693933835490,0.03762062,25757.0,25756.0,1.66363395]
[1693933835692,0.03762062,25757.0,25756.0,1.67263395]
[1693933836308,0.03762062,25757.0,25756.0,1.65363395]
[1693933836887,0.2122,25760.0,25756.0,3.51679722]
[1693933837102,0.2122,25760.0,25759.0,0.1025]
[1693933837309,0.2122,25760.0,25759.0,1.655354]
[1693933838222,0.2132,25760.0,25759.0,1.657354]
[1693933838622,0.2142,25760.0,25759.0,1.657354]
[1693933839291,0.2132,25760.0,25759.0,1.657354]
[1693933839459,0.2142,25760.0,25759.0,1.659354]
[1693933839844,0.2122,25760.0,25759.0,1.655354]
[1693933840241,0.2142,25760.0,25759.0,1.657354]
[1693933840445,0.4215526,25760.0,25759.0,0.880927]
[1693933840643,0.4215526,25760.0,25759.0,0.002]
[1693933841943,0.2693526,25760.0,25759.0,0.002]
[1693933842792,0.062,25760.0,25759.0,0.002]
[1693933843000,0.002,25760.0,25759.0,2.433781]
[1693933843213,0.062,25760.0,25759.0,1.657354]
[1693933844046,0.061,25760.0,25759.0,1.656354]
[1693933844282,0.061,25760.0,25759.0,1.658354]
[1693933844732,0.06,25760.0,25759.0,1.657354]
[1693933844944,0.06,25760.0,25759.0,0.880927]
[1693933845150,0.061,25760.0,25759.0,0.880927]
[1693933845541,0.06,25760.0,25759.0,0.778427]
[1693933845991,0.06,25760.0,25759.0,0.003]
[1693933846842,2.40031958,25760.0,25759.0,0.003]
[1693933847048,3.17671658,25760.0,25759.0,0.003]
[1693933847693,3.17671658,25760.0,25759.0,0.001]
[1693933847899,3.17671658,25760.0,25749.0,0.11397551]
[1693933847900,0.06,25753.0,25749.0,0.11397551]
[1693933848116,0.06,25753.0,25750.0,1.476675]
[1693933848336,0.1025,25751.0,25750.0,0.7]
[1693933848557,0.879168,25751.0,25750.0,0.7]
[1693933848765,0.06,25750.0,25747.0,0.2599]
[1693933848979,1.74538645,25749.0,25747.0,0.2599]
[1693933849206,1.74538645,25749.0,25748.0,0.7]
[1693933849628,2.90876072,25749.0,25748.0,0.7]
[1693933849850,3.31425953,25749.0,25745.0,1.553665]
[1693933850067,3.10163084,25749.0,25745.0,0.7010262]
[1693933850273,0.38664527,25748.0,25745.0,0.7010262]
[1693933850510,0.38664527,25748.0,25744.0,0.2599]
[1693933850511,1.553578,25747.0,25744.0,0.2599]
[1693933850716,2.00022327,25747.0,25743.0,0.776888]
[1693933851136,2.77701227,25747.0,25743.0,0.776888]
[1693933851355,2.93246227,25747.0,25743.0,0.776888]
[1693933851576,0.30599669,25746.0,25743.0,0.776888]
[1693933851799,1.08283269,25746.0,25743.0,0.776888]
[1693933852647,2.24631396,25746.0,25743.0,0.025]
[1693933853060,2.24631396,25746.0,25745.0,0.025]
[1693933853439,2.24631396,25746.0,25743.0,0.025]
[1693933853666,2.24831396,25746.0,25743.0,0.05]
[1693933854089,0.21259906,25745.0,25743.0,0.025]
[1693933854298,0.21259906,25745.0,25743.0,0.801906]
[1693933854567,0.53756459,25745.0,25743.0,0.801906]
[1693933854779,0.1625,25744.0,25743.0,0.025]
[1693933854995,2.10290527,25744.0,25743.0,0.025]
[1693933855207,0.04,25741.0,25740.0,0.0161291]
[1693933855430,1.69644,25741.0,25740.0,0.0161291]
[1693933855650,1.8632784,25741.0,25740.0,0.0161291]
[1693933856957,1.9657784,25741.0,25740.0,0.0161291]
[1693933857170,1.9677784,25741.0,25740.0,0.0401291]
[1693933857376,1.9657784,25741.0,25740.0,0.0161291]
[1693933857599,1.0863084,25741.0,25740.0,0.0161291]
[1693933858238,0.06,25741.0,25740.0,0.0171291]
[1693933858452,0.062,25741.0,25740.0,0.0171291]
[1693933861598,0.83897,25741.0,25740.0,0.0171291]
[1693933863004,0.68897,25741.0,25740.0,0.0171291]
[1693933863209,1.73090764,25742.0,25740.0,0.0171291]
[1693933863438,2.11755291,25742.0,25740.0,0.0171291]
[1693933863839,1.34058191,25742.0,25740.0,0.0171291]
[1693933864072,1.34058191,25742.0,25740.0,0.0161291]
[1693933864529,0.38664527,25741.0,25740.0,0.0171291]
[1693933864937,1.16361527,25741.0,25740.0,0.0171291]
[1693933865346,1.16361527,25741.0,25740.0,0.0161291]
[1693933865733,1.21648265,25741.0,25740.0,0.0161291]
[1693933866679,1.21748265,25741.0,25740.0,0.0161291]
[1693933866882,1.52256728,25741.0,25740.0,0.0161291]
[1693933867177,1.52256728,25741.0,25740.0,0.0171291]
[1693933867560,1.21748265,25741.0,25740.0,0.0171291]
[1693933868403,0.44051265,25741.0,25740.0,0.0171291]
[1693933869726,0.05386738,25741.0,25740.0,0.0171291]
[1693933869942,0.05386738,25741.0,25740.0,2.4506291]
[1693933871389,0.05386738,25741.0,25740.0,2.3481291]
[1693933873481,0.05386738,25741.0,25740.0,1.5711291]
[1693933873893,0.05386738,25741.0,25740.0,0.7941291]
[1693933874305,0.05386738,25741.0,25740.0,0.0171291]
[1693933874713,0.05386738,25741.0,25740.0,1.5711291]
[1693933874928,0.05386738,25741.0,25740.0,2.3481291]
[1693933880387,0.05386738,25741.0,25740.0,2.4506291]
[1693933880693,0.05386738,25741.0,25740.0,2.5240691]
[1693933880910,0.05386738,25741.0,25740.0,2.9044691]
[1693933881123,0.001,25741.0,25740.0,2.9036291]
[1693933881330,0.001,25741.0,25740.0,2.8790691]
[1693933881536,0.001,25741.0,25740.0,3.5963091]
[1693933881747,0.001,25741.0,25740.0,3.5800491]
[1693933881949,0.001,25741.0,25740.0,3.5795691]
[1693933882386,0.001,25741.0,25740.0,3.5796291]
[1693933882554,0.001,25741.0,25740.0,3.5795691]
[1693933882764,0.001,25741.0,25740.0,3.5798691]
[1693933883153,0.001,25741.0,25740.0,3.5804091]
[1693933883351,0.001,25741.0,25740.0,3.82221351]
[1693933883553,0.001,25741.0,25740.0,3.82227351]
[1693933883751,0.001,25741.0,25740.0,3.82275351]
[1693933883952,0.001,25741.0,25740.0,3.82257351]
[1693933884323,0.001,25741.0,25740.0,3.82269351]
[1693933884783,0.001,25741.0,25740.0,3.82239351]
[1693933884957,0.001,25741.0,25740.0,3.82281351]
[1693933885171,0.001,25741.0,25740.0,3.82287351]
[1693933885397,0.05222988,25741.0,25740.0,3.82335351]
[1693933885602,0.001,25741.0,25740.0,3.82335351]
[1693933885835,0.001,25741.0,25740.0,1.9311291]
[1693933886522,0.05227058,25741.0,25740.0,1.1541291]
[1693933886769,0.001,25741.0,25740.0,1.1541291]
[1693933887164,0.001,25741.0,25740.0,0.0171291]
[1693933887396,0.07547939,25741.0,25740.0,0.0171291]
[1693933887588,1.06174436,25741.0,25740.0,0.0171291]
[1693933887791,0.98726497,25741.0,25740.0,0.0171291]
[1693933889960,0.001,25741.0,25740.0,0.0171291]
[1693933890364,0.001,25741.0,25740.0,0.7941291]
[1693933890574,0.001,25741.0,25740.0,2.4506291]
[1693933890770,0.001,25741.0,25740.0,1.6736291]
[1693933890975,0.001,25741.0,25740.0,1.5711291]
[1693933891175,0.001,25741.0,25740.0,0.7941291]
[1693933891375,0.001,25741.0,25740.0,0.0171291]
[1693933895737,0.05491996,25741.0,25740.0,0.0171291]
[1693933896728,0.3121168,25741.0,25740.0,0.0171291]
[1693933899694,0.3121168,25741.0,25740.0,0.7941291]
[1693933901583,0.05491996,25741.0,25740.0,0.7941291]
[1693933903055,0.05491996,25741.0,25740.0,1.5711291]
[1693933903267,0.05491996,25741.0,25740.0,2.3481291]
[1693933903671,0.05471996,25741.0,25740.0,2.3481291]
[1693933906458,0.05471996,25741.0,25740.0,3.39437547]
[1693933906663,0.05471996,25741.0,25740.0,3.77458898]
[1693933906869,0.05471996,25741.0,25740.0,3.7630707]
[1693933907075,0.0008,25741.0,25740.0,3.95028716]
[1693933907282,0.0008,25741.0,25740.0,4.05554716]
[1693933907483,0.0008,25741.0,25740.0,3.8709707]
[1693933907743,0.0008,25741.0,25740.0,4.5707907]
[1693933907950,0.0008,25741.0,25740.0,4.5694107]
[1693933908161,0.0008,25741.0,25740.0,4.5766707]
[1693933908365,0.47183816,25748.0,25743.0,3.107555]
[1693933908573,0.32093816,25748.0,25745.0,0.1025]
[1693933908787,0.05462745,25747.0,25746.0,1.553638]
[1693933910022,0.05462745,25747.0,25746.0,2.330457]
[1693933910246,0.05662745,25747.0,25746.0,2.434957]
[1693933911407,0.05662745,25747.0,25746.0,3.134957]
[1693933911803,0.05662745,25747.0,25746.0,3.13109415]
[1693933912007,0.07962745,25747.0,25746.0,3.13309415]
[1693933912213,0.07962745,25747.0,25746.0,3.20713415]
[1693933912447,0.07962745,25747.0,25746.0,3.13309415]
[1693933912651,0.023,25747.0,25746.0,3.13109415]
[1693933912847,0.09272045,25751.0,25746.0,3.12909415]
[1693933912848,0.25272045,25751.0,25746.0,3.12909415]
[1693933913077,0.07553055,25747.0,25746.0,3.18525226]
[1693933913243,0.021,25747.0,25746.0,3.13309415]
[1693933913449,0.019,25747.0,25746.0,3.13109415]
[1693933913800,0.021,25747.0,25746.0,3.13209415]
[1693933917386,0.021,25747.0,25746.0,2.43209415]
[1693933921631,0.021,25747.0,25746.0,3.13209415]
[1693933924341,0.021,25747.0,25746.0,3.20535415]
[1693933924556,0.021,25747.0,25746.0,3.20601415]
[1693933924766,0.021,25747.0,25746.0,3.20595415]
[1693933924964,0.021,25747.0,25746.0,3.20667415]
[1693933925166,0.021,25747.0,25746.0,3.20697415]
[1693933925382,0.021,25747.0,25746.0,3.22281415]
[1693933925685,0.08622739,25747.0,25746.0,3.22341415]
[1693933925890,0.021,25747.0,25746.0,3.22725415]
[1693933926091,0.021,25747.0,25746.0,3.23085415]
[1693933926288,0.021,25747.0,25746.0,3.23121415]
[1693933926490,0.002,25747.0,25746.0,3.58975415]
[1693933926732,0.003,25747.0,25746.0,3.59717415]
[1693933927066,0.002,25747.0,25746.0,3.58117415]
[1693933927196,0.16,25751.0,25746.0,3.57999415]
[1693933927401,0.16,25751.0,25749.0,0.1025]
[1693933927604,0.16,25751.0,25750.0,1.553398]
[1693933928059,0.155414,25753.0,25750.0,1.553398]
[1693933928260,0.314814,25753.0,25750.0,1.553398]
[1693933929024,0.023,25751.0,25750.0,1.557398]
[1693933929245,0.002,25751.0,25750.0,1.555398]
[1693933929616,0.002,25751.0,25750.0,2.255398]
[1693933930022,0.002,25751.0,25750.0,2.257398]
[1693933930254,0.002,25751.0,25750.0,2.255398]
[1693933931102,0.314814,25753.0,25750.0,2.24953575]
[1693933931505,0.316814,25753.0,25750.0,2.25153575]
[1693933931717,0.021,25751.0,25750.0,2.25353575]
[1693933931918,0.316814,25753.0,25750.0,2.25153575]
[1693933932433,0.337814,25753.0,25750.0,2.25353575]
[1693933932635,0.314814,25753.0,25750.0,2.24953575]
[1693933932839,0.021,25751.0,25750.0,2.25153575]
[1693933933245,0.314814,25753.0,25750.0,2.24953575]
[1693933933466,0.335814,25753.0,25750.0,2.25153575]
[1693933933876,0.002,25751.0,25750.0,2.25353575]
[1693933934283,0.335814,25753.0,25750.0,2.25153575]
[1693933934284,0.5103668,25753.0,25750.0,2.25153575]
[1693933934492,0.21090567,25752.0,25750.0,1.55153575]
[1693933935102,0.021,25751.0,25750.0,1.55353575]
[1693933935329,0.021,25751.0,25750.0,1.55153575]
[1693933935483,0.21090567,25752.0,25750.0,1.54953575]
[1693933935684,0.21290567,25752.0,25750.0,1.55153575]
[1693933936419,0.021,25751.0,25750.0,1.55353575]
[1693933936617,0.21290567,25752.0,25750.0,1.55153575]
[1693933936821,0.21090567,25752.0,25750.0,1.54953575]
[1693933937173,0.1621283,25751.0,25750.0,0.002]
[1693933937822,0.9367963,25751.0,25748.0,1.553501]
[1693933938026,0.9367963,25751.0,25750.0,0.004]
[1693933938409,0.9367963,25751.0,25748.0,1.553501]
[1693933938583,1.28719676,25751.0,25750.0,0.002]
[1693933938789,0.9597963,25751.0,25750.0,0.004]
[1693933939816,0.1831283,25751.0,25750.0,0.004]
[1693933939989,0.1811283,25751.0,25750.0,0.002]
[1693933940189,0.1831283,25751.0,25750.0,0.002]
[1693933940648,0.24931743,25751.0,25750.0,0.002]
[1693933940808,0.24731743,25751.0,25750.0,0.002]
[1693933941008,0.24931743,25751.0,25750.0,0.780699]
[1693933944231,0.24931743,25751.0,25750.0,0.004]
[1693933946902,0.08918913,25751.0,25750.0,0.004]
[1693933952287,0.18182468,25751.0,25750.0,0.004]
[1693933957419,0.320778,25751.0,25750.0,0.004]
[1693933957647,0.18182468,25751.0,25750.0,0.004]
[1693933959512,0.320778,25751.0,25750.0,0.004]
[1693933966232,0.320778,25751.0,25750.0,0.780699]
[1693933967455,0.22814245,25751.0,25750.0,0.780699]
[1693933968478,0.22814245,25751.0,25750.0,1.480699]
[1693933969477,0.18200522,25751.0,25750.0,3.034097]
[1693933969910,0.08918913,25751.0,25750.0,3.136597]
[1693933974113,0.08918913,25751.0,25750.0,3.67852227]
[1693933974319,0.08918913,25751.0,25750.0,3.96748227]
[1693933974520,0.023,25751.0,25750.0,3.96550227]
[1693933974725,0.021,25751.0,25750.0,3.96482227]
[1693933974933,0.06588202,25751.0,25750.0,3.96300227]
[1693933975152,0.06588202,25751.0,25750.0,3.96258227]
[1693933975354,0.06588202,25751.0,25750.0,3.99414227]
[1693933975554,0.06588202,25751.0,25750.0,3.99048227]
[1693933975810,0.06588202,25751.0,25750.0,4.00636227]
[1693933975967,0.06588202,25751.0,25750.0,3.98254227]
[1693933975968,0.06388202,25751.0,25750.0,3.98254227]
[1693933976164,0.06388202,25751.0,25750.0,3.98272227]
[1693933976372,0.09281609,25755.0,25751.0,0.02]
[1693933976575,0.09281609,25755.0,25753.0,0.1025]
[1693933976779,0.09281609,25755.0,25754.0,1.553156]
[1693933978009,0.09481609,25755.0,25754.0,1.553156]
[1693933978637,0.09481609,25755.0,25754.0,1.554156]
[1693933978981,0.002,25755.0,25754.0,1.554156]
[1693933982808,0.002,25755.0,25754.0,2.330734]
[1693933983361,0.002,25755.0,25754.0,3.030734]
[1693933984419,0.002,25755.0,25754.0,2.330734]
[1693933984625,0.20338533,25755.0,25754.0,2.330734]
[1693933984798,0.20338533,25755.0,25754.0,1.554156]
[1693933985863,0.26713712,25755.0,25754.0,1.554156]
[1693933986065,0.06575179,25755.0,25754.0,1.554156]
[1693933988735,0.23911648,25755.0,25754.0,0.777578]
[1693933988932,0.23911648,25755.0,25754.0,0.001]
[1693933989364,0.33193257,25755.0,25754.0,0.001]
[1693933990861,0.23911648,25755.0,25754.0,0.001]
[1693933993757,1.43639607,25755.0,25754.0,0.001]
[1693933993970,2.20080915,25755.0,25754.0,0.001]
[1693933994631,3.11631047,25755.0,25754.0,0.001]
[1693933995290,3.02349438,25755.0,25754.0,0.001]
[1693933995533,3.21554574,25755.0,25754.0,0.001]
[1693933995849,3.02349438,25755.0,25754.0,0.001]
[1693933996002,3.58237739,25755.0,25754.0,0.001]
[1693933996218,3.49013965,25755.0,25754.0,0.001]
[1693933996418,3.65306224,25755.0,25754.0,0.001]
[1693933996618,3.88465112,25755.0,25754.0,0.001]
[1693933996994,3.69938002,25755.0,25754.0,0.001]
[1693933997203,3.69738002,25755.0,25749.0,0.7]
[1693933997415,0.19525455,25753.0,25749.0,0.7]
[1693933997618,1.93993327,25752.0,25749.0,0.7]
[1693933998222,2.71657727,25752.0,25749.0,0.009]
[1693933998841,0.20282124,25751.0,25748.0,0.776738]
[1693933999066,0.97950724,25751.0,25748.0,0.776738]
[1693933999264,1.36615251,25751.0,25748.0,0.776738]
[1693933999872,1.36615251,25751.0,25749.0,0.024]
[1693933999873,1.94001727,25751.0,25749.0,0.024]
[1693934000220,1.553372,25751.0,25749.0,0.025]
[1693934000351,1.555372,25751.0,25749.0,0.025]
[1693934000800,0.06249142,25750.0,25749.0,0.025]
[1693934001040,0.06249142,25750.0,25749.0,0.049]
[1693934001627,0.06249142,25750.0,25749.0,0.024]
[1693934001869,0.06249142,25750.0,25748.0,1.578486]
[1693934003444,0.06249142,25750.0,25749.0,0.7]
[1693934003648,0.06249142,25750.0,25749.0,1.476729]
[1693934003850,0.06449142,25750.0,25749.0,1.500729]
[1693934004050,0.06249142,25750.0,25749.0,1.476729]
[1693934004216,0.06249142,25750.0,25749.0,1.501729]
[1693934004416,0.06449142,25750.0,25749.0,1.501729]
[1693934005151,0.06249142,25750.0,25749.0,1.501729]
[1693934005528,0.06449142,25750.0,25749.0,1.525729]
[1693934006768,0.06449142,25750.0,25749.0,0.825729]
[1693934007088,0.06449142,25750.0,25749.0,1.602458]
[1693934008251,0.06449142,25750.0,25749.0,2.302458]
[1693934010605,0.06449142,25750.0,25749.0,1.602458]
[1693934013880,0.26726801,25750.0,25749.0,0.825729]
[1693934014033,0.26726801,25750.0,25749.0,0.049]
[1693934014233,0.59136319,25750.0,25749.0,0.049]
[1693934015271,0.26726801,25750.0,25749.0,0.049]
[1693934024204,1.04396701,25750.0,25749.0,0.049]
[1693934026416,0.26726801,25750.0,25749.0,0.049]
[1693934030649,0.06449142,25750.0,25749.0,0.049]
[1693934032425,0.06449142,25750.0,25749.0,0.825729]
[1693934032634,0.06449142,25750.0,25749.0,1.525729]
[1693934032854,0.06449142,25750.0,25749.0,3.181687]
[1693934035913,0.06449142,25750.0,25749.0,3.18241472]
[1693934055892,0.06449142,25750.0,25749.0,2.48241472]
[1693934056510,0.06449142,25750.0,25749.0,1.70568572]
[1693934067509,0.06449142,25750.0,25749.0,2.40568572]
[1693934070591,0.06449142,25750.0,25749.0,1.70568572]
[1693934075713,0.06449142,25750.0,25749.0,2.40568572]
[1693934087988,0.15724597,25750.0,25749.0,2.40568572]
[1693934088416,0.15724597,25750.0,25749.0,1.70568572]
[1693934095017,0.06449142,25750.0,25749.0,1.70568572]
[1693934099590,0.43429137,25750.0,25749.0,0.04972772]
[1693934099794,2.08044392,25750.0,25749.0,0.04972772]
[1693934100227,1.98768937,25750.0,25749.0,0.04972772]
[1693934100442,2.08067722,25750.0,25749.0,0.04972772]
[1693934100860,3.08408058,25750.0,25749.0,0.04972772]
[1693934101074,3.79891977,25750.0,25749.0,0.04972772]
[1693934101272,3.47967497,25750.0,25749.0,0.04972772]
[1693934101480,3.42783951,25750.0,25749.0,0.04972772]
[1693934101697,3.1305641,25750.0,25749.0,0.04972772]
[1693934101909,3.2973565,25750.0,25749.0,0.049]
[1693934102533,3.43676515,25750.0,25749.0,0.049]
[1693934102747,3.26997275,25750.0,25749.0,0.049]
[1693934102974,3.24556329,25750.0,25749.0,0.04975339]
[1693934103553,3.1305641,25750.0,25749.0,0.04975339]
[1693934103933,3.24567449,25750.0,25749.0,0.04975339]
[1693934104338,3.1305641,25750.0,25749.0,0.04975339]
[1693934104550,3.26993173,25750.0,25749.0,0.04975339]
[1693934108025,3.18243738,25750.0,25749.0,0.04975339]
[1693934108244,3.32243738,25750.0,25749.0,0.04975339]
[1693934108898,3.32043738,25750.0,25749.0,0.025]
[1693934109109,3.34343738,25750.0,25749.0,0.027]
[1693934109286,3.64343738,25750.0,25749.0,0.027]
[1693934109487,0.1,25747.0,25741.0,1.816427]
[1693934109806,0.776886,25744.0,25741.0,1.553927]
[1693934110008,0.776886,25744.0,25742.0,0.00075584]
[1693934110366,1.06532683,25744.0,25742.0,0.00075584]
[1693934110772,0.93235,25744.0,25742.0,0.00075584]
[1693934111396,0.93235,25744.0,25742.0,0.01975584]
[1693934111774,0.21589923,25743.0,25742.0,0.03575584]
[1693934112563,0.21589923,25743.0,25742.0,0.01975584]
[1693934112844,0.21689923,25743.0,25742.0,0.01675584]
[1693934113087,0.21689923,25743.0,25742.0,0.03575584]
[1693934114424,0.99380923,25743.0,25742.0,0.03575584]
[1693934119685,1.67635122,25743.0,25742.0,0.03575584]
[1693934119883,3.33267122,25743.0,25742.0,0.03575584]
[1693934120107,3.23017122,25743.0,25742.0,0.03575584]
[1693934120719,3.29480463,25743.0,25742.0,0.03575584]
[1693934122390,2.99890791,25743.0,25742.0,0.03575584]
[1693934125837,2.88550868,25743.0,25742.0,0.03575584]
[1693934126038,3.06638793,25743.0,25742.0,0.03575584]
[1693934127884,3.04550868,25743.0,25742.0,0.03575584]
[1693934128917,3.04550868,25743.0,25742.0,0.016]
[1693934129126,3.43215395,25743.0,25742.0,0.016]
[1693934129331,3.43615395,25743.0,25742.0,0.017]
[1693934130112,3.43515395,25743.0,25742.0,0.001]
[1693934130475,3.45415395,25743.0,25742.0,0.003]
[1693934144567,3.54669196,25743.0,25742.0,0.003]
[1693934145933,3.54669196,25743.0,25740.0,0.00330904]
[1693934145934,1.06,25741.0,25740.0,0.00330904]
[1693934146135,1.06,25736.0,25735.0,0.019998]
[1693934146334,0.02,25731.0,25729.0,0.01173084]
[1693934146560,2.04374927,25730.0,25729.0,0.01173084]
[1693934146735,3.69835327,25730.0,25729.0,0.01173084]
[1693934146996,3.85145327,25730.0,25729.0,0.01173084]
[1693934147194,4.23809854,25730.0,25729.0,0.01173084]
[1693934147577,0.02,25728.0,25725.0,0.16324554]
[1693934147853,2.82132427,25727.0,25725.0,0.16324554]
[1693934148701,2.82132427,25727.0,25725.0,0.16524554]
[1693934149120,2.82132427,25727.0,25725.0,0.15324554]
[1693934149321,0.36186983,25726.0,25725.0,0.15324554]
[1693934149545,2.3033611,25726.0,25725.0,0.15524554]
[1693934150039,2.3033611,25726.0,25725.0,0.15798547]
[1693934150252,2.3033611,25726.0,25725.0,0.15598547]
[1693934150460,2.5011938,25726.0,25725.0,0.15798547]
[1693934150654,2.56566831,25726.0,25725.0,0.15798547]
[1693934151504,2.56566831,25726.0,25725.0,0.15598547]
[1693934151861,2.57866831,25726.0,25725.0,0.15698547]
[1693934152082,2.21679848,25726.0,25725.0,0.15698547]
[1693934156810,1.43937548,25726.0,25725.0,0.15698547]
[1693934157227,1.25854278,25726.0,25725.0,0.15698547]
[1693934157580,0.09447451,25726.0,25725.0,0.16127917]
[1693934158201,0.09447451,25726.0,25725.0,0.15698547]
[1693934158407,0.09447451,25726.0,25725.0,2.59752813]
[1693934158611,0.09447451,25726.0,25725.0,2.66671879]
[1693934158835,0.09447451,25726.0,25725.0,2.59615879]
[1693934161115,0.09447451,25726.0,25725.0,2.65982447]
[1693934161321,0.09447451,25726.0,25725.0,2.66466787]
[1693934161529,0.09447451,25726.0,25725.0,2.59656787]
[1693934162496,0.09447451,25726.0,25725.0,1.81911487]
[1693934170454,0.09447451,25726.0,25725.0,1.04166187]
[1693934171404,0.09447451,25726.0,25725.0,1.03666187]
[1693934172556,0.09447451,25726.0,25725.0,1.81411487]
[1693934177592,0.09447451,25726.0,25725.0,0.00373993]
[1693934177593,2.06480906,25726.0,25725.0,0.00373993]
[1693934177798,1.25854278,25726.0,25725.0,0.00373993]
[1693934178460,0.09447451,25726.0,25725.0,0.78119293]
[1693934178643,0.09447451,25726.0,25725.0,0.00373993]
[1693934180539,0.09447451,25726.0,25725.0,0.00884726]
[1693934180730,0.09447451,25726.0,25725.0,0.78630026]
[1693934184470,0.09447451,25726.0,25725.0,0.88880026]
[1693934185097,0.09447451,25726.0,25725.0,1.66625326]
[1693934185331,0.09447451,25726.0,25725.0,0.78119293]
[1693934186205,2.971094,25726.0,25725.0,0.00373993]
[1693934186408,3.35773927,25726.0,25725.0,0.00373993]
[1693934187240,3.46253405,25726.0,25725.0,0.00373993]
[1693934187436,3.76253405,25726.0,25725.0,0.00373993]
[1693934187845,3.76253405,25726.0,25725.0,0.003]
[1693934188258,3.74553405,25726.0,25725.0,0.001]
[1693934188664,3.76953405,25726.0,25725.0,0.002]
[1693934189266,3.75653405,25726.0,25725.0,0.001]
[1693934189465,0.16,25725.0,25724.0,0.019998]
[1693934189607,3.36814954,25725.0,25724.0,0.019998]
[1693934190058,3.4319917,25725.0,25724.0,0.019998]
[1693934191272,3.4559917,25725.0,25724.0,0.021998]
[1693934191471,3.4799917,25725.0,25724.0,0.022998]
[1693934192265,3.6551761,25725.0,25724.0,0.022998]
[1693934192875,3.26853083,25725.0,25724.0,0.022998]
[1693934194524,3.09334643,25725.0,25724.0,0.022998]
[1693934194680,3.25949767,25725.0,25724.0,0.022998]
[1693934195102,3.21949767,25725.0,25724.0,0.022998]
[1693934195611,3.19949767,25725.0,25724.0,0.022998]
[1693934195809,3.58614294,25725.0,25724.0,0.022998]
[1693934197814,3.52614294,25725.0,25724.0,0.02377598]
[1693934198164,3.17949767,25725.0,25724.0,0.02377598]
[1693934198397,3.19949767,25725.0,25724.0,0.02377598]
[1693934202883,3.13949767,25725.0,25724.0,0.02377598]
[1693934203037,3.03699767,25725.0,25724.0,0.02377598]
[1693934204562,3.19856875,25725.0,25724.0,0.02377598]
[1693934215403,3.03241751,25725.0,25724.0,0.02377598]
[1693934215602,3.13491751,25725.0,25724.0,0.02377598]
[1693934215804,3.32362586,25725.0,25724.0,0.02377598]
[1693934219784,3.13491751,25725.0,25724.0,0.02377598]
[1693934219914,3.34702005,25725.0,25724.0,0.022998]
[1693934221122,3.08294897,25725.0,25724.0,0.022998]
[1693934222004,3.08294897,25725.0,25724.0,0.02377598]
[1693934224485,1.31594043,25725.0,25724.0,0.02377598]
[1693934224687,1.31594043,25725.0,25724.0,0.02922365]
[1693934225107,1.31594043,25725.0,25724.0,0.02377598]
[1693934225272,1.27594043,25725.0,25724.0,0.02843129]
[1693934225453,0.11184216,25725.0,25724.0,1.58339929]
[1693934225721,0.11184216,25725.0,25724.0,2.46338329]
[1693934226353,0.11184216,25725.0,25724.0,1.68589929]
[1693934231417,0.11184216,25725.0,25724.0,2.46338329]
[1693934232018,0.11184216,25725.0,25724.0,1.68589929]
[1693934234907,0.11184216,25725.0,25724.0,2.46338329]
[1693934235113,0.11184216,25725.0,25724.0,2.45872798]
[1693934235330,0.11184216,25725.0,25724.0,2.46399586]
[1693934235892,0.11184216,25725.0,25724.0,1.68651186]
[1693934236157,0.08784216,25725.0,25724.0,1.68551186]